bitfinex/quotes_ETHUSD_20240819
["timestamp","ask_amount","ask_price","bid_price","bid_amount"]
[1724085653177,3.87246,2582.4,2581.9,3.8731]
[1724085653668,3.87252,2582.3,2582.0,0.04158653]
[1724085653869,3.87246,2582.4,2582.0,0.04158653]
[1724085654020,3.87253,2582.3,2582.0,0.04158653]
[1724085654217,6.33455,2582.8,2582.2,3.87259]
[1724085654532,13.69405,2583.1,2582.4,3.87221]
[1724085654731,13.69405,2583.1,2582.6,3.87206]
[1724085655063,3.8713,2583.2,2582.6,6.30166]
[1724085655219,3.87139,2583.1,2582.7,0.04140032]
[1724085655420,9.8227,2583.4,2582.7,0.04140032]
[1724085655616,3.87169,2582.9,2582.4,3.87236]
[1724085656326,7.91809,2583.3,2582.2,9.33685]
[1724085656327,3.87185,2582.8,2582.5,0.04113436]
[1724085656526,3.87185,2582.8,2582.2,9.33682]
[1724085656527,3.87206,2582.6,2582.2,5.4643]
[1724085656868,7.74373,2582.8,2582.3,0.04113436]
[1724085657038,3.87194,2582.7,2582.3,0.04113436]
[1724085661860,3.87236,2582.4,2582.3,0.04113436]
[1724085662030,4.42236,2582.4,2582.3,0.04113436]
[1724085662226,4.42236,2582.4,2582.0,7.37]
[1724085662550,4.42236,2582.4,2582.3,0.0409149]
[1724085662753,4.42236,2582.4,2582.0,7.37]
[1724085662962,9.00736804,2582.4,2582.3,0.03955462]
[1724085663122,9.00736804,2582.4,2582.0,7.37]
[1724085663123,3.87254,2582.3,2582.0,7.37]
[1724085663329,0.55,2582.2,2582.0,7.37]
[1724085663565,0.55,2582.2,2581.8,3.0]
[1724085663566,4.42269,2582.2,2582.1,0.03819433]
[1724085663942,0.55,2582.2,2581.8,6.87325]
[1724085664263,3.87232,2582.5,2582.0,6.25725]
[1724085664490,7.36,2582.6,2582.2,3.87258]
[1724085664787,7.36,2582.6,2582.1,0.03833397]
[1724085664935,3.87222,2582.5,2582.3,0.03833397]
[1724085665331,7.36,2582.6,2582.2,3.87265]
[1724085665842,7.36,2582.6,2582.3,0.03833397]
[1724085666261,11.23211,2582.6,2582.3,0.03833397]
[1724085666429,11.23211,2582.6,2582.1,3.8728]
[1724085666785,3.87221,2582.5,2582.4,0.03833397]
[1724085667071,3.87221,2582.5,2582.0,6.25725]
[1724085667072,4.42221,2582.5,2582.0,6.25725]
[1724085667227,3.87237,2582.4,2582.0,2.3844]
[1724085667424,9.6217,2582.6,2582.1,0.03829407]
[1724085667425,3.87267,2582.2,2582.1,0.03829407]
[1724085667637,3.87267,2582.2,2581.8,6.87325]
[1724085667865,3.87267,2582.2,2582.1,0.03829407]
[1724085668073,3.87267,2582.2,2581.9,2.4708]
[1724085668074,4.42267,2582.2,2581.9,2.4708]
[1724085668375,0.497267,2582.1,2581.8,3.0]
[1724085668929,6.24037,2582.2,2581.8,3.0]
[1724085669128,0.55,2582.3,2581.8,3.0]
[1724085669364,15.10432,2582.6,2582.1,3.87277]
[1724085669629,4.42222,2582.5,2582.1,3.87277]
[1724085670452,0.55,2582.5,2582.1,3.87277]
[1724085670794,0.55,2582.5,2582.2,2.328]
[1724085670971,11.23214,2582.6,2582.2,2.328]
[1724085670972,7.36,2582.6,2582.2,2.328]
[1724085671145,7.36,2582.6,2582.3,3.87244]
[1724085672187,3.87184,2582.8,2582.3,3.87244]
[1724085672373,0.55,2582.7,2582.3,3.87244]
[1724085672550,3.87178,2582.8,2582.4,3.91078348]
[1724085672750,0.55,2582.7,2582.4,3.91078348]
[1724085674175,0.55,2582.7,2582.4,0.03851348]
[1724085674363,4.42199,2582.7,2582.2,9.20065]
[1724085674887,4.42199,2582.7,2582.3,0.03834725]
[1724085675114,5.251367,2582.7,2582.3,0.03834725]
[1724085675418,5.251367,2582.7,2582.3,3.91083725]
[1724085676570,1.379377,2582.7,2582.3,3.91083725]
[1724085676818,0.55,2582.7,2582.3,3.91075725]
[1724085676998,4.42193,2582.7,2582.3,3.91075725]
[1724085677873,3.87214,2582.6,2582.3,0.03834725]
[1724085678119,0.683054,2582.5,2582.3,0.03834725]
[1724085678321,3.87214,2582.6,2582.3,0.03834725]
[1724085679309,0.55,2582.5,2582.3,0.03834725]
[1724085679506,3.87236,2582.4,2582.3,0.03834725]
[1724085679826,3.87261,2582.3,2581.8,3.87318]
[1724085680122,0.55,2582.2,2581.9,3.0]
[1724085680292,0.55,2582.2,2581.9,6.87305]
[1724085681235,4.42267,2582.2,2581.8,3.87324]
[1724085681382,5.08017704,2582.2,2581.8,3.87324]
[1724085681585,2.81573408,2582.2,2581.8,3.87316]
[1724085681785,0.55,2582.2,2581.8,3.87316]
[1724085682972,0.55,2582.2,2581.8,7.74636]
[1724085683183,0.55,2582.2,2581.9,3.87306]
[1724085683577,5.48072704,2582.4,2581.9,3.87306]
[1724085683578,0.55,2582.3,2581.9,3.87306]
[1724085684209,0.55,2582.3,2582.0,3.87295]
[1724085685189,2.15822704,2582.3,2582.0,3.87295]
[1724085685523,0.55,2582.3,2581.9,3.87309]
[1724085685709,1.60822704,2582.3,2582.1,3.87281]
[1724085685907,9.77618515,2582.7,2582.3,3.87243]
[1724085685908,1.60822704,2582.5,2582.3,3.87243]
[1724085686313,1.60822704,2582.5,2582.4,0.03826022]
[1724085686492,1.60822704,2582.5,2582.3,3.87243]
[1724085686917,1.60822704,2582.5,2582.4,0.03826022]
[1724085687429,1.60822704,2582.6,2582.4,0.03826022]
[1724085687591,1.60822704,2582.7,2582.4,0.67740924]
[1724085687932,1.60822704,2582.6,2582.4,0.03826022]
[1724085688861,1.60822704,2582.6,2582.4,3.91060022]
[1724085689354,3.87167,2582.9,2582.6,3.87206]
[1724085689355,1.60822704,2582.7,2582.6,3.87206]
[1724085689508,2.01420089,2582.9,2582.7,0.774427]
[1724085689509,1.60822704,2582.8,2582.7,0.774427]
[1724085689836,1.60822704,2582.8,2582.7,0.03826022]
[1724085690937,1.60822704,2582.8,2582.7,3.91017022]
[1724085691135,1.60822704,2582.8,2582.7,0.03826022]
[1724085691350,1.60822704,2582.9,2582.7,0.03826022]
[1724085692112,1.60822704,2582.9,2582.7,3.91011022]
[1724085692424,1.60822704,2582.9,2582.7,4.93640724]
[1724085693252,1.60822704,2583.0,2582.9,2.3784]
[1724085693620,1.60822704,2583.1,2582.9,2.3784]
[1724085693830,1.60822704,2583.1,2582.9,2.41643415]
[1724085694026,1.60822704,2583.0,2582.9,2.41643415]
[1724085694240,1.60822704,2583.0,2582.9,0.03803415]
[1724085694442,5.88619749,2583.0,2582.5,3.87209]
[1724085694655,1.61138172,2582.9,2582.6,3.0]
[1724085695017,1.61138172,2582.9,2582.6,6.87205]
[1724085695213,1.61138172,2582.9,2582.7,2.3784]
[1724085696433,5.48285172,2583.0,2582.7,2.3784]
[1724085696833,1.61138172,2583.0,2582.7,2.3784]
[1724085697630,5.48286172,2583.0,2582.7,2.3784]
[1724085698871,1.61138172,2583.0,2582.7,6.25028]
[1724085699720,5.48287172,2583.0,2582.7,2.3784]
[1724085702627,5.48287172,2583.0,2582.8,0.03803415]
[1724085702976,5.48287172,2583.0,2582.7,2.3784]
[1724085703129,1.61138172,2582.9,2582.7,2.3784]
[1724085703730,5.48287172,2583.0,2582.7,2.3784]
[1724085704330,5.48287172,2583.0,2582.6,3.0]
[1724085704686,1.61138172,2582.9,2582.6,3.0]
[1724085704836,1.61138172,2582.9,2582.6,6.87205]
[1724085705031,5.48287172,2583.0,2582.6,6.87205]
[1724085706731,1.61138172,2583.0,2582.7,3.87188]
[1724085707795,1.61138172,2583.0,2582.8,3.87165]
[1724085707943,2.01457505,2583.1,2582.9,6.16861]
[1724085707944,1.61138172,2583.1,2582.9,6.16861]
[1724085709058,1.61138172,2583.0,2582.7,3.8719]
[1724085709555,1.61138172,2583.0,2582.6,3.87194]
[1724085709556,1.61138172,2582.9,2582.6,7.74392]
[1724085709755,1.61138172,2583.0,2582.6,7.74392]
[1724085710368,1.61138172,2582.9,2582.6,7.7439]
[1724085711289,1.61138172,2582.9,2582.7,3.8719]
[1724085712972,1.61138172,2582.9,2582.7,4.88559]
[1724085713376,1.61138172,2583.0,2582.7,4.88559]
[1724085713794,1.61138172,2582.9,2582.7,4.88559]
[1724085714204,1.61138172,2582.9,2582.6,3.87204]
[1724085715610,7.16985172,2583.0,2582.6,3.87204]
[1724085715770,1.61138172,2582.9,2582.6,3.87204]
[1724085716177,1.61138172,2582.9,2582.5,6.26553]
[1724085716178,5.48306172,2582.9,2582.5,6.26553]
[1724085716671,1.61138172,2582.9,2582.5,6.26553]
[1724085717081,1.61138172,2582.8,2582.5,2.3934]
[1724085717296,7.17023172,2582.8,2582.5,3.0]
[1724085717500,3.87207,2582.6,2582.3,9.6453]
[1724085717669,3.87223,2582.5,2582.3,7.37]
[1724085717884,5.48361172,2582.5,2582.3,7.37]
[1724085718618,1.61138172,2582.5,2582.3,7.37]
[1724085718828,1.61138172,2582.6,2582.3,12.981573]
[1724085719121,1.61138172,2582.6,2582.3,7.37]
[1724085719714,1.61138172,2582.6,2582.2,3.87266]
[1724085719914,7.17055172,2582.6,2582.1,6.1481]
[1724085720310,5.48355172,2582.6,2582.2,3.87262]
[1724085721709,1.61138172,2582.6,2582.3,3.87251]
[1724085721932,1.61138172,2582.8,2582.5,3.87219]
[1724085722069,1.61138172,2583.0,2582.6,2.865189]
[1724085722277,1.61138172,2583.0,2582.6,6.737169]
[1724085722934,1.61138172,2583.0,2582.6,2.865189]
[1724085723092,1.61138172,2583.1,2582.8,2.3513]
[1724085723301,1.61138172,2583.1,2582.8,6.22298]
[1724085725100,1.61138172,2583.1,2582.8,6.22297]
[1724085726128,1.61138172,2583.1,2582.8,10.09467]
[1724085726329,1.61138172,2583.0,2582.9,3.87161]
[1724085726496,2.01606203,2583.2,2582.9,3.87161]
[1724085726497,1.61138172,2583.1,2582.9,3.87161]
[1724085726698,1.61138172,2583.1,2583.0,2.4462]
[1724085727025,1.61138172,2583.1,2583.0,3.5660947]
[1724085728642,5.88724203,2583.2,2582.8,6.20025]
[1724085728842,1.61368417,2583.0,2582.8,6.20025]
[1724085729229,1.61368417,2583.1,2582.8,6.20018]
[1724085729444,1.61368417,2583.0,2582.8,6.20018]
[1724085729654,1.61368417,2583.0,2582.8,2.948518]
[1724085729862,1.61368417,2583.0,2582.6,2.4363]
[1724085729863,5.48519417,2583.0,2582.6,2.4363]
[1724085730156,5.48519417,2583.0,2582.4,12.8063]
[1724085730157,3.87183,2582.8,2582.4,12.8063]
[1724085730361,3.87207,2582.6,2582.4,7.37]
[1724085730510,1.61368417,2582.6,2582.4,7.37]
[1724085730710,1.61368417,2582.5,2582.4,7.37]
[1724085730980,3.87221,2582.5,2582.4,7.37]
[1724085731134,9.76048203,2582.5,2582.4,7.37]
[1724085731467,4.60904142,2582.5,2581.9,3.8731]
[1724085731749,1.61436018,2582.2,2581.9,3.87304]
[1724085732048,1.61436018,2582.3,2581.9,3.87304]
[1724085732409,1.61436018,2582.2,2581.8,9.8182]
[1724085732640,3.87307,2582.0,2581.8,7.37]
[1724085732841,3.87311,2581.9,2581.8,7.37]
[1724085733053,3.87311,2581.9,2581.5,2.3535]
[1724085733210,5.48747018,2581.9,2581.5,2.3535]
[1724085733554,3.87311,2581.9,2581.5,2.3535]
[1724085733722,5.48732018,2582.0,2581.5,7.98699489]
[1724085734352,5.48732018,2582.0,2581.6,3.0]
[1724085734787,3.87328,2581.8,2581.4,4.0004789]
[1724085734930,1.61436018,2581.9,2581.4,4.0004589]
[1724085735111,3.87315,2581.9,2581.5,0.40004789]
[1724085736023,3.87315,2581.9,2581.5,3.40004789]
[1724085736229,3.87334,2581.8,2581.6,3.0]
[1724085736429,3.87334,2581.8,2581.4,0.1266889]
[1724085737123,3.87342,2581.7,2581.4,0.1266889]
[1724085737326,3.87334,2581.8,2581.4,0.1266889]
[1724085737526,3.87349,2581.7,2581.4,0.1266889]
[1724085740241,3.87327,2581.8,2581.4,1.06623879]
[1724085740932,3.87337,2581.8,2581.4,1.06623879]
[1724085745089,3.87345,2581.7,2581.4,0.1266889]
[1724085746985,3.87358,2581.6,2581.4,0.1266889]
[1724085747316,7.92098,2582.0,2581.4,0.1266889]
[1724085747317,7.74742,2581.5,2581.4,0.1266889]
[1724085747502,9.072162,2581.5,2581.4,0.1266889]
[1724085748117,3.87343,2581.7,2581.4,0.1266889]
[1724085748314,3.87334,2581.8,2581.4,0.1266889]
[1724085748516,3.87334,2581.8,2581.4,4.0005389]
[1724085748703,3.87312,2581.9,2581.4,7.8743289]
[1724085748903,7.36,2582.1,2581.6,3.87356]
[1724085749108,7.36,2582.1,2581.7,6.31686]
[1724085749427,11.23282,2582.1,2581.7,6.31686]
[1724085749645,3.87299,2582.0,2581.7,2.4435]
[1724085749945,3.87299,2582.0,2581.5,3.87371]
[1724085750091,3.87299,2582.0,2581.5,4.62027818]
[1724085750652,3.87299,2582.0,2581.5,8.49398818]
[1724085750950,3.87299,2582.0,2581.5,4.62020818]
[1724085751309,3.87319,2581.9,2581.5,4.62020818]
[1724085751646,3.87299,2582.0,2581.5,4.62020818]
[1724085752005,7.74605,2582.0,2581.6,0.71903971]
[1724085752440,3.87299,2582.0,2581.6,0.71903971]
[1724085752640,7.74608,2582.0,2581.6,0.71903971]
[1724085753312,3.87319,2581.9,2581.5,4.62020818]
[1724085753649,3.87313,2581.9,2581.4,6.4439289]
[1724085754838,3.8729,2582.1,2581.6,3.87354]
[1724085755096,7.36,2582.4,2582.0,3.87296]
[1724085755256,7.36,2582.4,2582.1,2.3713]
[1724085755788,5.48206092,2582.9,2582.1,2.995719]
[1724085756088,2.4123,2583.1,2582.5,6.24351]
[1724085756089,7.89409092,2583.1,2582.5,6.24351]
[1724085756244,3.87145,2583.1,2582.5,6.24351]
[1724085757281,3.87162,2582.9,2582.5,2.3713]
[1724085757825,3.87162,2582.9,2582.2,13.11638]
[1724085757969,3.87192,2582.7,2582.3,3.8725]
[1724085758280,3.87162,2582.9,2582.4,3.0]
[1724085758479,3.87162,2582.9,2582.4,8.183973]
[1724085759044,3.87179,2582.8,2582.4,8.183973]
[1724085759244,3.87179,2582.8,2582.4,6.87234]
[1724085759551,3.87162,2582.9,2582.4,6.87234]
[1724085759756,3.87164,2582.9,2582.4,10.74462]
[1724085759947,3.87164,2582.9,2582.4,6.87228]
[1724085760350,3.87164,2582.9,2582.4,8.183894]
[1724085760548,3.87147,2583.0,2582.4,8.183894]
[1724085760782,4.42147,2583.0,2582.5,3.87213]
[1724085761138,4.42147,2583.0,2582.6,2.4428]
[1724085761343,3.87163,2582.9,2582.6,2.4428]
[1724085761892,4.42146,2583.0,2582.6,2.4428]
[1724085762397,4.42146,2583.0,2582.6,6.31479]
[1724085762574,1.61034092,2583.3,2582.8,3.87169]
[1724085762779,5.48133092,2583.4,2582.9,3.87161]
[1724085763068,3.87079,2583.5,2582.8,3.87176]
[1724085763069,3.87104,2583.3,2582.8,3.87176]
[1724085763296,5.48113092,2583.5,2582.6,7.633485]
[1724085763297,3.87148,2583.0,2582.6,2.4428]
[1724085763738,3.87148,2583.0,2582.6,5.4428]
[1724085764100,3.87148,2583.0,2582.6,9.31486]
[1724085764266,3.87131,2583.1,2582.6,9.31486]
[1724085764444,10.07006,2583.3,2582.7,3.87183]
[1724085764816,10.07006,2583.3,2582.6,9.31486]
[1724085764817,7.74225,2583.3,2582.8,3.87174]
[1724085764952,3.87118,2583.2,2582.7,3.8719]
[1724085765412,3.87132,2583.1,2582.6,9.31485]
[1724085765686,3.87132,2583.1,2582.6,5.4428]
[1724085765992,3.87168,2582.9,2582.6,2.4428]
[1724085766158,4.42147,2583.0,2582.6,2.4428]
[1724085766345,3.87132,2583.1,2582.6,7.246244]
[1724085766755,7.74276,2583.1,2582.6,7.246244]
[1724085766962,3.87146,2583.0,2582.6,6.31474]
[1724085767468,3.87132,2583.1,2582.6,6.31474]
[1724085768487,7.74274,2583.1,2582.6,6.31474]
[1724085768987,3.87132,2583.1,2582.6,6.31474]
[1724085769863,3.87148,2583.0,2582.6,6.31474]
[1724085770413,0.55,2583.2,2582.6,7.633438]
[1724085770414,7.74276,2583.1,2582.6,7.633438]
[1724085770563,3.87132,2583.1,2582.6,6.31474]
[1724085772191,7.74271,2583.1,2582.6,6.31474]
[1724085772354,3.87132,2583.1,2582.6,6.31474]
[1724085773270,3.87132,2583.1,2582.7,2.4318]
[1724085773477,1.61034092,2583.4,2582.8,6.30345]
[1724085773478,5.48122092,2583.4,2582.8,6.30345]
[1724085773675,3.87109,2583.3,2582.8,6.30345]
[1724085774996,3.87131,2583.1,2582.8,2.4318]
[1724085775204,3.87117,2583.2,2582.8,6.30353]
[1724085775394,1.61034092,2583.4,2582.9,3.8716]
[1724085775593,1.61034092,2583.4,2583.2,2.4318]
[1724085775978,1.61034092,2583.4,2583.3,3.87101]
[1724085776303,1.61034092,2583.4,2583.3,7.74202]
[1724085776596,1.61034092,2583.4,2583.3,3.87101]
[1724085777403,1.61034092,2583.4,2583.3,8.372301]
[1724085777918,1.61034092,2583.4,2583.3,13.752001]
[1724085778070,1.61034092,2583.4,2583.3,17.623011]
[1724085780521,1.61034092,2583.4,2583.3,13.752001]
[1724085780681,1.61034092,2583.4,2583.3,9.880991]
[1724085781280,1.61034092,2583.4,2583.3,13.752001]
[1724085782507,3.87019,2583.9,2583.4,3.87082]
[1724085782810,3.87029,2583.8,2583.5,3.0]
[1724085783315,3.87012,2583.9,2583.4,6.8708]
[1724085783474,3.87012,2583.9,2583.4,7.5588921]
[1724085783663,3.87037,2583.8,2583.4,3.0]
[1724085783867,3.87037,2583.8,2583.1,6.18922]
[1724085783868,3.8706,2583.6,2583.1,6.18922]
[1724085784064,7.74124,2583.6,2583.1,6.18922]
[1724085784341,3.8706,2583.6,2583.1,6.18922]
[1724085784670,3.8706,2583.6,2583.1,10.06046]
[1724085784867,3.87043,2583.7,2583.2,3.87103]
[1724085785111,3.87043,2583.7,2583.3,3.871]
[1724085785325,3.87056,2583.6,2583.1,7.195266]
[1724085785809,6.18429,2583.8,2583.2,3.0]
[1724085785810,3.87043,2583.7,2583.2,3.0]
[1724085785979,3.87043,2583.7,2583.2,3.7195266]
[1724085786570,3.87043,2583.7,2583.3,3.87101]
[1724085786771,3.87058,2583.6,2583.2,7.5906666]
[1724085787023,3.87043,2583.7,2583.2,7.5906666]
[1724085787024,3.87043,2583.7,2583.2,3.0]
[1724085787317,3.87043,2583.7,2583.2,6.87104]
[1724085787669,3.87018,2583.9,2583.4,3.87086]
[1724085787872,3.87006,2584.0,2583.6,3.87056]
[1724085788180,2.4686,2584.2,2583.7,3.87031]
[1724085788181,3.86968,2584.2,2583.7,3.87031]
[1724085788400,6.33807,2584.4,2583.9,2.3429]
[1724085788568,3.86923,2584.5,2584.0,4.10416]
[1724085788968,3.86922,2584.5,2584.1,3.86973]
[1724085789806,7.73851,2584.5,2584.0,4.10424]
[1724085790007,3.86922,2584.5,2584.0,4.10424]
[1724085790206,7.73854,2584.5,2584.0,4.10424]
[1724085790391,3.86922,2584.5,2584.0,7.97414]
[1724085790708,3.86922,2584.5,2584.1,1.031704]
[1724085792066,6.05501735,2585.1,2584.3,3.8694]
[1724085792067,4.02984092,2585.1,2584.3,3.8694]
[1724085792216,3.8687,2584.9,2584.3,3.8694]
[1724085792414,7.73743,2584.9,2584.3,3.8694]
[1724085792739,3.8687,2584.9,2584.4,3.86935]
[1724085792923,3.86877,2584.8,2584.3,1.745093]
[1724085793447,3.8687,2584.9,2584.3,1.745093]
[1724085793645,3.86884,2584.8,2584.3,1.745093]
[1724085793953,3.8687,2584.9,2584.3,1.745093]
[1724085793954,3.86893,2584.7,2584.3,1.745093]
[1724085794869,3.86893,2584.7,2584.2,6.21152]
[1724085794870,3.86915,2584.6,2584.2,2.342]
[1724085795011,3.86938,2584.4,2584.2,3.0]
[1724085795410,3.86938,2584.4,2583.9,2.4389]
[1724085795411,3.86938,2584.4,2584.1,3.0]
[1724085795697,3.86938,2584.4,2584.0,3.0]
[1724085795857,3.8696,2584.3,2583.9,2.4389]
[1724085796018,3.86937,2584.4,2583.9,5.4389]
[1724085796224,3.86937,2584.4,2583.9,9.30894]
[1724085796842,3.86932,2584.5,2583.9,9.30897]
[1724085797358,3.86932,2584.5,2584.1,3.86981]
[1724085799876,3.86856,2585.0,2584.7,2.2554]
[1724085801041,3.86865,2584.9,2584.7,2.2554]
[1724085801280,3.86869,2584.9,2584.4,6.26905]
[1724085801929,3.86877,2584.8,2584.4,2.3997]
[1724085802145,3.86877,2584.8,2584.4,5.3997]
[1724085802985,3.86894,2584.7,2584.4,5.3997]
[1724085803176,3.86944,2584.4,2584.1,5.2936]
[1724085803361,3.86944,2584.4,2584.1,2.2936]
[1724085803679,3.86922,2584.5,2584.1,2.2936]
[1724085803983,7.73825,2584.6,2584.1,6.16336]
[1724085805481,3.86928,2584.5,2584.1,2.2936]
[1724085805768,3.86946,2584.4,2584.0,3.0]
[1724085805973,3.86946,2584.4,2583.7,9.716]
[1724085805974,7.73897,2584.4,2583.8,3.0]
[1724085806151,3.86945,2584.4,2583.9,3.87011]
[1724085806351,3.86945,2584.4,2584.0,3.0]
[1724085807410,3.86945,2584.4,2584.0,3.687004]
[1724085807710,3.86945,2584.4,2584.0,3.0]
[1724085807913,3.86959,2584.3,2584.0,3.0]
[1724085808058,4.255486,2584.9,2583.7,13.58631]
[1724085808059,3.86982,2584.1,2583.9,3.0]
[1724085808258,3.86982,2584.1,2583.7,9.716]
[1724085808259,3.86982,2584.1,2583.8,3.0]
[1724085809011,3.86982,2584.1,2583.4,2.4027]
[1724085809012,3.87029,2583.8,2583.4,2.4027]
[1724085809159,3.87048,2583.7,2583.4,2.4027]
[1724085809616,3.87048,2583.7,2583.2,10.14483]
[1724085809856,3.87029,2583.8,2583.2,6.27374]
[1724085810106,3.87029,2583.8,2583.4,3.87086]
[1724085810478,3.87004,2584.0,2583.5,3.87065]
[1724085811720,3.86987,2584.1,2583.5,3.87065]
[1724085811927,3.87013,2583.9,2583.4,3.87086]
[1724085813727,6.28484,2584.3,2583.6,2.4112]
[1724085813728,7.89528092,2584.3,2583.6,2.4112]
[1724085814016,3.87004,2584.0,2583.6,6.2817]
[1724085814989,4.41969,2584.2,2583.7,3.87028]
[1724085814990,3.86967,2584.2,2583.7,3.87028]
[1724085815187,7.73945,2584.2,2583.7,3.87039]
[1724085815502,3.86967,2584.2,2583.7,3.87039]
[1724085815737,3.86967,2584.2,2583.7,4.9871352]
[1724085816129,3.86967,2584.2,2583.7,8.8574752]
[1724085816541,3.86967,2584.2,2583.7,4.9870852]
[1724085816713,7.73945,2584.2,2583.7,4.9870852]
[1724085816913,3.86982,2584.1,2583.7,4.9870852]
[1724085817700,3.86967,2584.2,2583.7,8.8574052]
[1724085818057,7.73946,2584.2,2583.8,1.12686052]
[1724085818215,7.73946,2584.2,2583.6,2.4112]
[1724085818216,3.86991,2584.1,2583.6,6.28175]
[1724085818597,3.87003,2584.0,2583.6,2.4112]
[1724085819049,3.86983,2584.1,2583.6,9.28167]
[1724085819844,3.86983,2584.1,2583.7,3.87041]
[1724085820027,3.8697,2584.2,2583.8,0.928161]
[1724085820200,3.86983,2584.1,2583.8,0.928161]
[1724085821305,3.86983,2584.1,2583.6,5.4112]
[1724085821306,3.86983,2584.1,2583.6,9.28175]
[1724085822231,3.86999,2584.0,2583.6,5.4112]
[1724085822599,3.86999,2584.0,2583.6,3.0]
[1724085823664,3.87004,2584.0,2583.6,3.0]
[1724085823813,3.87022,2583.9,2583.5,3.0]
[1724085824014,5.48038092,2584.0,2583.5,3.0]
[1724085824015,3.87026,2583.8,2583.5,3.0]
[1724085824224,3.87012,2583.9,2583.5,6.87071]
[1724085824521,3.87012,2583.9,2583.6,0.87121433]
[1724085824723,3.87004,2584.0,2583.6,0.87121433]
[1724085824929,5.48038092,2584.0,2583.6,0.87121433]
[1724085825244,5.48038092,2584.0,2583.7,2.3449]
[1724085825245,3.87004,2584.0,2583.7,2.3449]
[1724085826452,5.48018092,2584.1,2583.7,7.22393143]
[1724085826629,5.48003092,2584.2,2583.8,3.87025]
[1724085826837,1.61034092,2584.2,2583.9,3.87004]
[1724085827031,1.61034092,2584.2,2584.1,2.4811]
[1724085827277,2.01580771,2584.4,2584.1,3.503207]
[1724085827278,1.61034092,2584.3,2584.1,3.503207]
[1724085827585,1.61034092,2584.3,2584.1,2.4811]
[1724085827741,1.61034092,2584.4,2584.1,2.4811]
[1724085828462,1.61034092,2584.3,2584.1,2.4811]
[1724085829439,1.61034092,2584.3,2584.0,3.86993]
[1724085829440,5.47987092,2584.3,2583.9,6.2091]
[1724085831080,1.61034092,2584.3,2583.9,10.07913]
[1724085831403,1.61034092,2584.3,2584.0,4.877863]
[1724085833244,1.61034092,2584.3,2584.0,4.877813]
[1724085833474,1.61034092,2584.4,2584.1,2.3256]
[1724085833669,5.47972092,2584.4,2584.1,2.3256]
[1724085837712,1.61034092,2584.4,2584.1,3.0459413]
[1724085837883,1.61034092,2584.5,2584.1,3.0459413]
[1724085838075,9.34858092,2584.6,2584.2,3.86964]
[1724085838269,1.61034092,2584.5,2584.1,6.19539]
[1724085839427,1.61034092,2584.5,2584.2,3.86963]
[1724085839715,3.86908,2584.6,2584.1,6.19539]
[1724085839716,5.47942092,2584.6,2584.3,1.006502]
[1724085839931,1.61034092,2584.5,2584.3,1.006502]
[1724085840415,5.47942092,2584.6,2584.3,1.006502]
[1724085840627,1.61034092,2584.5,2584.3,1.006502]
[1724085841434,1.61034092,2584.5,2584.1,6.19533]
[1724085841797,1.61034092,2584.5,2584.1,10.06507]
[1724085842033,5.47942092,2584.6,2584.1,10.06507]
[1724085842256,5.47942092,2584.6,2584.2,3.86962]
[1724085842457,5.47942092,2584.6,2584.3,1.006495]
[1724085843854,1.61034092,2584.7,2584.4,3.86936]
[1724085844172,1.61034092,2584.7,2584.5,2.4489]
[1724085844324,1.61034092,2584.7,2584.5,3.1813685]
[1724085844525,1.61034092,2584.7,2584.3,1.006495]
[1724085844728,5.47955092,2584.6,2584.1,3.86968]
[1724085844911,5.47955092,2584.6,2584.2,3.8696]
[1724085845114,1.61034092,2584.6,2584.2,3.8696]
[1724085845322,1.61034092,2584.6,2584.3,0.773928]
[1724085846016,1.61034092,2584.5,2584.3,0.773928]
[1724085846360,2.01925128,2584.7,2584.3,0.773928]
[1724085846361,1.61034092,2584.6,2584.3,4.643428]
[1724085846913,1.61034092,2584.6,2584.4,0.4643428]
[1724085847177,1.61034092,2584.6,2584.4,2.7904428]
[1724085847323,1.61034092,2584.6,2584.5,3.86922]
[1724085847520,1.61034092,2584.7,2584.5,3.86922]
[1724085847755,1.61034092,2584.7,2584.6,1.05290128]
[1724085847958,1.61034092,2584.8,2584.6,1.05290128]
[1724085849959,1.61034092,2584.8,2584.6,4.92193128]
[1724085850143,1.61034092,2584.9,2584.6,4.92193128]
[1724085852341,5.47896092,2584.9,2584.5,3.86921]
[1724085852539,1.61034092,2584.8,2584.5,3.86921]
[1724085852787,5.47896092,2584.9,2584.5,3.86921]
[1724085854740,5.47896092,2584.9,2584.4,10.06471]
[1724085855042,3.86908,2584.6,2584.2,3.86966]
[1724085855399,5.47942092,2584.6,2584.1,3.86979]
[1724085855543,1.61034092,2584.5,2584.1,3.86979]
[1724085855743,1.61034092,2584.5,2584.1,6.838584]
[1724085856647,1.61034092,2584.5,2584.2,3.0]
[1724085858302,1.61034092,2584.5,2584.2,6.86966]
[1724085860013,5.47942092,2584.6,2584.2,6.86966]
[1724085860678,1.61034092,2584.5,2584.2,6.86966]
[1724085860998,1.61034092,2584.5,2584.3,0.9838454]
[1724085861202,1.61034092,2584.6,2584.3,0.9838454]
[1724085861607,1.61034092,2584.6,2584.3,4.8533354]
[1724085863391,1.61034092,2584.6,2584.3,0.9838454]
[1724085863793,1.61034092,2584.6,2584.4,3.50389954]
[1724085864077,1.61034092,2584.7,2584.5,3.86922]
[1724085864277,1.61034092,2584.7,2584.5,3.86914]
[1724085864473,1.61034092,2584.7,2584.5,5.09173949]
[1724085864719,1.61034092,2584.7,2584.5,3.86911]
[1724085865214,1.61034092,2584.7,2584.4,6.20094]
[1724085865606,1.61034092,2584.7,2584.4,3.86934]
[1724085865806,1.61034092,2584.7,2584.5,3.86921]
[1724085866187,1.61034092,2584.8,2584.5,3.86921]